bitfinex-derivatives/quotes_ETHF0:USTF0_20230104
["timestamp","ask_amount","ask_price","bid_price","bid_amount"]
[1672860584640,1.583,1252.9,1252.8,1.5]
[1672860585269,1.59,1253.0,1252.8,1.5]
[1672860587259,1.595,1253.1,1252.8,1.5]
[1672860587470,12.5503,1253.2,1252.8,3.095]
[1672860588102,1.595,1253.1,1252.8,1.5]
[1672860588312,9.539,1253.0,1252.7,5.5073]
[1672860588529,1.595,1252.8,1252.6,2.5]
[1672860588736,1.595,1252.7,1252.5,13.958]
[1672860588947,1.595,1252.7,1252.3,7.56683162]
[1672860589262,1.595,1252.7,1252.3,5.98283162]
[1672860589263,1.595,1252.6,1252.3,5.98283162]
[1672860589472,1.595,1252.6,1252.4,2.5]
[1672860589682,4.095,1252.6,1252.4,2.5]
[1672860589891,1.74916236,1253.3,1252.5,8.0073]
[1672860590108,3.0073,1253.8,1253.2,3.0073]
[1672860590420,12.1294,1253.7,1253.1,3.0073]
[1672860590735,7.948,1253.5,1253.3,3.0073]
[1672860591053,10.448,1253.4,1253.3,3.0073]
[1672860591258,12.031,1253.4,1253.2,2.5]
[1672860591686,12.043,1253.4,1253.3,3.0073]
[1672860592306,1.595,1253.4,1253.3,3.0073]
[1672860592519,1.5,1253.5,1253.3,3.0073]
[1672860592520,3.079,1253.5,1253.3,3.0073]
[1672860592730,1.579,1253.5,1253.3,3.0073]
[1672860592942,3.182,1253.4,1253.3,3.0073]
[1672860593467,3.182,1253.4,1253.2,2.5]
[1672860593683,9.543,1253.4,1253.1,6.69751265]
[1672860593889,2.5,1253.3,1253.1,5.5073]
[1672860594303,12.037,1253.3,1253.1,3.0073]
[1672860594514,9.543,1253.2,1253.1,3.0073]
[1672860595362,9.543,1253.2,1252.9,6.69751265]
[1672860595672,1.583,1253.0,1252.8,16.93353162]
[1672860595886,9.543,1253.2,1252.8,5.47553162]
[1672860596097,9.543,1253.2,1253.0,3.0073]
[1672860596098,1.595,1253.2,1253.0,3.0073]
[1672860596512,1.595,1253.2,1253.1,2.5]
[1672860597457,1.595,1253.3,1253.1,2.5]
[1672860597671,1.5,1253.5,1253.2,3.0073]
[1672860597987,11.043,1253.5,1253.2,3.0073]
[1672860598610,9.448,1253.5,1253.2,3.0073]
[1672860599355,1.595,1253.3,1253.2,3.0073]
[1672860599776,1.583,1253.4,1253.2,3.0073]
[1672860599989,1.583,1253.4,1253.2,4.19751265]
[1672860600190,1.583,1253.4,1253.3,2.5]
[1672860600395,9.543,1253.4,1253.2,3.0073]
[1672860600611,9.543,1253.4,1253.0,3.0073]
[1672860600612,9.538,1253.3,1253.0,3.0073]
[1672860600821,1.583,1253.1,1253.0,3.0073]
[1672860601036,1.583,1253.1,1252.8,2.97553162]
[1672860601350,1.583,1253.1,1253.0,3.0073]
[1672860602080,1.583,1253.1,1252.8,3.0073]
[1672860602290,1.595,1252.9,1252.8,3.0073]
[1672860602502,9.543,1252.9,1252.6,1.19021265]
[1672860602719,1.59,1252.7,1252.6,3.0073]
[1672860602918,1.59,1252.7,1252.5,2.97553162]
[1672860603133,1.593,1252.6,1252.4,4.19751265]
[1672860603341,4.095,1252.5,1252.4,4.19751265]
[1672860603551,12.043,1252.5,1252.4,3.0073]
[1672860603768,4.095,1252.5,1252.4,4.19751265]
[1672860603980,1.595,1252.5,1252.4,4.19751265]
[1672860604191,1.579,1252.6,1252.4,5.98283162]
[1672860604499,4.095,1252.7,1252.5,2.5]
[1672860604920,4.095,1252.7,1252.4,3.0073]
[1672860605125,4.095,1252.7,1252.3,2.97553162]
[1672860605337,4.095,1252.7,1252.4,2.5]
[1672860605338,1.595,1252.6,1252.4,2.5]
[1672860605759,7.948,1252.5,1252.3,1.19021265]
[1672860605975,9.543,1252.4,1252.2,1.19021265]
[1672860606186,9.543,1252.4,1252.1,4.94072575]
[1672860606396,1.595,1252.4,1252.3,2.5]
[1672860607129,1.595,1252.4,1252.2,6.69751265]
[1672860607338,7.948,1252.3,1252.2,3.0073]
[1672860607549,1.595,1252.4,1252.2,3.0073]
[1672860607758,11.041,1252.5,1252.2,4.19751265]
[1672860607966,11.041,1252.5,1252.4,2.97553162]
[1672860608183,11.041,1252.5,1252.4,5.47553162]
[1672860608394,11.041,1252.5,1252.4,4.28531897]
[1672860608607,3.093,1252.5,1252.4,1.78531897]
[1672860608921,3.093,1252.5,1252.4,2.35961322]
[1672860609133,3.093,1252.5,1252.4,1.78403826]
[1672860609450,11.041,1252.5,1252.4,2.973435]
[1672860609966,12.625,1252.5,1252.4,2.973435]
[1672860610391,12.625,1252.5,1252.3,2.973435]
[1672860610602,9.541,1252.4,1252.3,1.18939674]
[1672860610810,9.541,1252.4,1252.3,2.97374989]
[1672860611021,9.541,1252.4,1252.3,5.47374989]
[1672860611542,3.083,1252.5,1252.3,4.28403826]
[1672860611752,1.583,1252.5,1252.4,1.1896763]
[1672860611964,4.5903,1252.5,1252.3,3.6896763]
[1672860612601,1.583,1252.5,1252.4,1.1896763]
[1672860612806,9.537,1252.6,1252.4,2.97371456]
[1672860613017,1.595,1252.7,1252.5,2.97371456]
[1672860613232,1.595,1252.7,1252.6,1.1896763]
[1672860613750,9.543,1252.7,1252.6,1.1896763]
[1672860614384,9.543,1252.7,1252.5,2.97371456]
[1672860614593,1.583,1252.6,1252.5,1.1896763]
[1672860614805,1.583,1252.6,1252.4,2.97371456]
[1672860615018,11.138,1252.5,1252.4,1.1896763]
[1672860615336,14.81068299,1252.5,1252.3,1.1896763]
[1672860615648,9.543,1252.4,1252.2,2.5]
[1672860615849,1.595,1252.3,1252.2,2.5]
[1672860616061,9.543,1252.4,1252.2,2.5]
[1672860616803,1.595,1252.4,1252.2,2.5]
[1672860617121,9.543,1252.4,1252.2,2.5]
[1672860617531,5.41797919,1252.6,1252.2,7.0983]
[1672860617532,5.26381683,1252.6,1252.2,7.0983]
[1672860617746,7.948,1252.5,1252.2,7.0983]
[1672860618481,4.095,1252.6,1252.2,7.0983]
[1672860618695,1.595,1252.5,1252.2,5.5073]
[1672860618902,7.948,1252.4,1252.2,5.5073]
[1672860619112,9.538,1252.3,1252.1,4.46519413]
[1672860619326,9.538,1252.3,1252.1,1.96519413]
[1672860619749,9.543,1252.2,1252.1,1.96519413]
[1672860619957,9.543,1252.2,1252.1,1.85338644]
[1672860620794,1.595,1252.2,1252.1,1.85338644]
[1672860621000,1.595,1252.3,1252.1,1.85338644]
[1672860621212,1.595,1252.3,1252.2,2.5]
[1672860621844,9.543,1252.3,1252.2,2.5]
[1672860623849,12.5503,1252.3,1252.1,3.04306274]
[1672860624048,10.7204,1252.2,1252.1,1.75755512]
[1672860624257,12.2204,1252.2,1252.1,1.75755512]
[1672860624474,12.914475,1252.2,1252.1,1.75755512]
[1672860625949,11.414475,1252.2,1252.1,1.75755512]
[1672860626264,9.539,1252.2,1252.1,1.75755512]
[1672860626581,9.2244404,1252.2,1252.1,1.75755512]
[1672860626998,9.543,1252.3,1252.1,1.75755512]
[1672860627212,1.595,1252.3,1252.2,2.5]
[1672860628050,9.543,1252.3,1252.2,2.5]
[1672860628262,9.543,1252.3,1252.2,3.6896763]
[1672860628461,9.543,1252.3,1252.2,2.5]
[1672860628462,1.595,1252.3,1252.2,2.5]
[1672860628671,1.595,1252.6,1252.2,8.48101456]
[1672860628880,1.591,1252.8,1252.3,4.55871456]
[1672860629103,12.032,1252.9,1252.4,5.7919763]
[1672860629636,2.5,1252.8,1252.4,7.57601456]
[1672860629940,2.5,1252.8,1252.7,2.5]
[1672860630142,12.032,1252.9,1252.7,2.5]
[1672860630351,1.587,1253.0,1252.7,2.5]
[1672860630565,7.948,1252.9,1252.7,2.5]
[1672860631832,10.70381683,1253.0,1252.7,2.5]
[1672860632243,2.75581683,1253.0,1252.8,3.0073]
[1672860632455,1.16881683,1253.1,1252.8,4.6023]
[1672860632670,2.91797919,1253.1,1252.8,4.6023]
[1672860633092,2.91797919,1253.1,1252.9,1.5]
[1672860633511,2.91797919,1253.1,1253.0,3.0073]
[1672860633717,1.16881683,1253.1,1253.0,3.0073]
[1672860633927,10.86597919,1253.2,1253.0,3.0073]
[1672860634143,10.86597919,1253.2,1253.1,2.5]
[1672860634671,9.11681683,1253.2,1253.1,2.5]
[1672860634881,10.86597919,1253.2,1253.1,2.5]
[1672860635303,9.11681683,1253.2,1253.1,2.5]
[1672860635721,7.948,1253.2,1253.1,2.5]
[1672860636878,9.11681683,1253.2,1253.1,2.5]
[1672860637291,9.11681683,1253.2,1253.0,3.0073]
[1672860638034,7.948,1253.2,1253.0,3.0073]
[1672860638556,9.11681683,1253.2,1253.0,3.0073]
[1672860638762,11.61681683,1253.2,1253.0,3.0073]
[1672860638978,1.5,1253.1,1253.0,3.0073]
[1672860639505,13.36597919,1253.2,1253.0,3.0073]
[1672860639718,11.61681683,1253.2,1253.0,3.0073]
[1672860640347,9.11681683,1253.2,1253.0,3.0073]
[1672860640557,11.61681683,1253.2,1253.0,3.0073]
[1672860641186,1.5,1253.1,1253.0,3.0073]
[1672860641711,11.61681683,1253.2,1253.0,3.0073]
[1672860641712,10.448,1253.2,1253.0,3.0073]
[1672860641921,7.948,1253.2,1253.0,3.0073]
[1672860642132,7.01297919,1253.3,1253.0,3.0073]
[1672860642133,14.96097919,1253.3,1253.0,3.0073]
[1672860642342,13.21181683,1253.3,1253.2,3.0073]
[1672860642760,5.26381683,1253.3,1253.2,3.0073]
[1672860642972,2.76381683,1253.3,1253.2,3.0073]
[1672860643181,1.16881683,1253.3,1253.2,3.0073]
[1672860643391,4.51297919,1253.4,1253.2,3.0073]
[1672860643609,1.16881683,1253.4,1253.2,3.0073]
[1672860643815,2.91797919,1253.5,1253.2,3.0073]
[1672860644028,3.66881683,1253.5,1253.4,3.0073]
[1672860644652,1.16881683,1253.5,1253.4,3.0073]
[1672860645075,4.50197919,1253.6,1253.4,3.0073]
[1672860645396,4.50197919,1253.6,1253.4,4.5983]
[1672860645397,1.16881683,1253.6,1253.4,4.5983]
[1672860645605,3.66881683,1253.7,1253.4,4.5983]
[1672860645811,2.5,1253.7,1253.6,3.0073]
[1672860646651,12.032,1253.7,1253.3,1.5]
[1672860646854,1.5,1253.4,1253.3,1.5]
[1672860647069,1.5,1253.4,1253.3,4.5073]
[1672860647484,3.091,1253.5,1253.3,4.5073]
[1672860647908,1.591,1253.5,1253.3,4.5073]
[1672860648122,1.583,1253.6,1253.3,4.5073]
[1672860648333,1.5,1253.5,1253.3,4.5073]
[1672860648646,11.039,1253.5,1253.3,3.0073]
[1672860648854,11.124,1253.4,1253.3,3.0073]
[1672860649067,11.124,1253.4,1253.2,2.5]
[1672860649283,1.589,1253.3,1253.2,2.5]
[1672860652641,1.589,1253.3,1253.1,3.0073]
[1672860653172,1.589,1253.3,1253.0,2.5]
[1672860653173,1.583,1253.2,1253.0,3.0073]
[1672860653483,1.583,1253.2,1252.8,3.0073]
[1672860653699,1.583,1253.2,1253.0,3.0073]
[1672860654011,2.5,1253.1,1252.9,2.5]
[1672860655267,2.5,1253.1,1252.8,3.094]
[1672860655473,10.448,1253.1,1252.8,4.6013]
[1672860655685,1.589,1253.0,1252.8,3.0073]
[1672860655897,10.448,1253.1,1252.7,2.5]
[1672860655898,1.595,1252.9,1252.7,2.5]
[1672860656108,1.595,1252.9,1252.7,5.5073]
[1672860656736,2.5,1252.8,1252.7,5.5073]
[1672860657366,4.095,1252.9,1252.7,5.5073]
[1672860658214,1.595,1252.9,1252.7,5.5073]
[1672860658425,1.591,1253.0,1252.7,5.5073]
[1672860658629,1.595,1253.2,1252.9,3.0073]
[1672860658841,5.41797919,1253.4,1253.1,4.6023]
[1672860659047,2.5,1253.4,1253.1,4.6023]
[1672860659257,7.42527919,1253.5,1253.1,4.6023]
[1672860659469,1.16881683,1253.4,1253.2,1.595]
[1672860659684,4.17611683,1253.5,1253.2,1.595]
[1672860659997,13.87327919,1253.5,1253.3,2.5]
[1672860660210,3.66881683,1253.4,1253.3,2.5]
[1672860660411,2.5,1253.4,1253.3,2.5]
[1672860660627,4.5863,1253.5,1253.3,2.5]
[1672860660837,1.583,1253.6,1253.3,5.5073]
[1672860661046,4.51297919,1253.8,1253.4,1.595]
[1672860661265,2.76381683,1253.8,1253.4,1.595]
[1672860661487,5.26381683,1253.8,1253.5,3.0073]
[1672860661689,3.66881683,1253.8,1253.6,2.5]
[1672860662000,1.595,1253.7,1253.3,7.0903]
[1672860662213,1.59,1253.6,1253.3,5.5073]
[1672860662628,11.038,1253.6,1253.3,5.5073]
[1672860662836,1.595,1253.5,1253.3,5.5073]
[1672860663264,1.595,1253.4,1253.1,5.5073]
[1672860663999,10.61681683,1253.6,1253.1,7.1003]
[1672860664000,1.595,1253.5,1253.1,7.1003]
[1672860664208,4.25981683,1253.6,1253.3,3.0073]
[1672860664521,1.595,1253.4,1253.1,5.5073]
[1672860664731,1.5,1253.3,1253.1,5.5073]
[1672860665359,1.595,1253.5,1253.1,7.1023]
[1672860665884,5.62017919,1253.6,1253.2,1.595]
[1672860666094,4.83216236,1253.6,1253.2,1.595]
[1672860666301,4.83216236,1253.6,1253.3,3.0073]
[1672860666516,1.5,1253.6,1253.3,4.6023]
[1672860667043,1.5,1253.6,1253.3,12.5503]
[1672860667256,8.18263518,1253.8,1253.5,3.0073]
[1672860667571,1.74916236,1253.7,1253.5,3.0073]
[1672860668103,3.84447282,1253.6,1253.5,3.0073]
[1672860668312,3.84447282,1253.6,1253.4,1.5]
[1672860668628,1.75756943,1253.5,1253.4,1.5]
[1672860669046,0.80836943,1253.5,1253.4,1.5]
[1672860669888,2.34447282,1253.6,1253.4,1.5]
[1672860670088,2.34447282,1253.6,1253.5,3.0073]
[1672860671877,3.84447282,1253.6,1253.5,3.0073]
[1672860672301,6.77865024,1253.6,1253.5,3.0073]
[1672860672506,3.84447282,1253.6,1253.5,3.0073]
[1672860672717,6.77865024,1253.6,1253.4,1.5]
[1672860672937,2.34447282,1253.5,1253.4,1.5]
[1672860673561,3.84447282,1253.6,1253.4,1.5]
[1672860673771,6.77865024,1253.6,1253.5,3.0073]
[1672860674081,3.84493832,1253.6,1253.5,3.0073]
[1672860674503,6.77911574,1253.6,1253.5,3.0073]
[1672860674714,3.84493832,1253.6,1253.5,3.0073]
[1672860674930,4.43417742,1253.6,1253.5,3.0073]
[1672860675135,4.43417742,1253.6,1253.3,4.5903]
[1672860675354,2.34463419,1253.5,1253.3,3.0073]
[1672860675557,2.34463419,1253.5,1253.4,1.5]
[1672860675772,5.27881161,1253.5,1253.3,3.0073]
[1672860676195,2.34463419,1253.4,1253.1,5.5073]
[1672860676610,10.29263419,1253.4,1253.1,5.5073]
[1672860676821,2.34463419,1253.4,1253.1,3.0073]
[1672860677241,2.34463419,1253.4,1253.1,12.1449763]
[1672860677463,2.34463419,1253.4,1253.3,3.0073]
[1672860679455,2.34463419,1253.4,1253.1,9.1376763]
[1672860679456,2.34463419,1253.4,1253.1,4.1969763]
[1672860679665,2.34463419,1253.4,1253.1,3.0073]
[1672860679978,2.34463419,1253.4,1253.2,2.5]
[1672860680185,5.27881161,1253.5,1253.3,3.0073]
[1672860680504,2.34463419,1253.5,1253.4,1.5]
[1672860681031,2.34463419,1253.5,1253.3,3.0073]
[1672860681552,2.34463419,1253.5,1253.4,1.5]
[1672860682396,5.27881161,1253.6,1253.4,1.5]
[1672860682914,2.34463419,1253.6,1253.5,3.0073]
[1672860683129,7.77881161,1253.8,1253.5,3.0073]
[1672860683335,4.84463419,1253.8,1253.5,3.0073]
[1672860684083,2.34463419,1253.8,1253.5,10.9553]
[1672860684394,2.34463419,1253.9,1253.7,3.0073]
[1672860684604,4.84463419,1253.9,1253.7,3.0073]
[1672860684815,4.84463419,1253.9,1253.8,2.5]
[1672860685237,4.84463419,1253.9,1253.7,3.0073]
[1672860685443,1.5,1253.8,1253.7,3.0073]
[1672860685656,1.5,1253.8,1253.5,3.0073]
[1672860685657,3.84463419,1253.8,1253.5,3.0073]
[1672860686707,1.5,1253.8,1253.5,4.1969763]
[1672860687342,4.84463419,1253.9,1253.7,3.0073]
[1672860687552,2.34463419,1253.9,1253.7,3.0073]
[1672860687760,7.77881161,1254.0,1253.7,3.0073]
[1672860687966,4.84463419,1254.0,1253.7,3.0073]
[1672860689438,2.34463419,1254.0,1253.7,3.0073]
[1672860689651,2.34463419,1254.1,1253.9,3.0073]
[1672860690497,2.93417742,1254.1,1254.0,2.5]
[1672860691755,2.3421594,1254.2,1254.0,2.5]
[1672860692074,2.3421594,1254.2,1254.1,3.0073]
[1672860692496,2.3421594,1254.3,1254.1,3.0073]
[1672860692915,2.5,1254.2,1254.1,3.0073]
[1672860693229,4.8421594,1254.2,1254.1,3.0073]
[1672860693755,4.84317485,1254.2,1254.1,3.0073]
[1672860693955,5.43417742,1254.2,1254.1,3.0073]
[1672860694169,4.84152882,1254.2,1254.1,3.0073]
[1672860695846,2.5,1254.2,1254.1,3.0073]
[1672860696584,4.84152882,1254.2,1254.0,1.58]
[1672860696794,4.84152882,1254.2,1253.9,4.6033]
[1672860697745,2.34152882,1254.1,1253.9,4.6033]
[1672860697948,2.34152882,1254.1,1253.9,3.0073]
[1672860698162,3.93252882,1254.1,1253.9,3.0073]
[1672860698906,1.591,1254.1,1253.9,3.0073]
[1672860699640,3.93252882,1254.1,1253.7,7.0923]
[1672860699847,3.93252882,1254.1,1253.6,2.5]
[1672860699848,1.596,1253.9,1253.6,2.5]
[1672860700372,1.596,1253.9,1253.5,7.1033]
[1672860700575,1.596,1253.9,1253.5,1.596]
[1672860700576,9.544,1253.9,1253.5,1.596]
[1672860700791,1.591,1253.6,1253.3,1.1896763]
[1672860701108,1.595,1253.5,1253.4,3.0073]
[1672860702685,1.595,1253.5,1253.3,2.5]
[1672860702890,1.595,1253.5,1253.4,3.0073]
[1672860703106,1.595,1253.5,1253.1,7.56401456]
[1672860703318,1.595,1253.5,1253.1,4.1969763]
[1672860703319,1.586,1253.4,1253.1,4.1969763]
[1672860703530,1.586,1253.4,1253.1,3.0073]
[1672860703742,1.591,1253.3,1253.1,3.0073]
[1672860703945,2.5,1253.2,1253.1,3.0073]
[1672860704579,1.591,1253.3,1253.1,3.0073]
[1672860705000,1.591,1253.3,1253.2,2.5]
[1672860706892,6.43752882,1253.5,1253.2,2.5]
[1672860708155,3.93752882,1253.5,1253.2,2.5]
[1672860708356,6.42352882,1253.6,1253.2,4.096]
[1672860708886,3.92352882,1253.6,1253.3,3.0073]
[1672860709094,3.93652882,1253.7,1253.3,4.6033]
[1672860709304,4.84152882,1253.7,1253.4,1.596]
[1672860709515,2.34152882,1253.7,1253.4,1.596]
[1672860709930,4.84152882,1253.7,1253.4,1.596]
[1672860710149,1.5,1253.6,1253.3,4.6033]
[1672860710569,1.5,1253.6,1253.3,12.5513]
[1672860711308,6.42952882,1253.7,1253.3,12.5513]
[1672860711621,1.588,1253.7,1253.3,12.5513]
[1672860711826,1.583,1253.7,1253.3,4.6033]
[1672860712040,6.42452882,1253.7,1253.4,1.5]
[1672860712252,1.5,1253.6,1253.4,1.5]
[1672860712666,1.5,1253.6,1253.5,3.0073]
[1672860712885,1.5,1253.6,1253.4,1.5]
[1672860712886,3.84152882,1253.6,1253.4,1.5]
[1672860713094,3.081,1253.6,1253.4,1.5]
[1672860713309,3.081,1253.6,1253.2,10.07701456]
[1672860714039,1.596,1253.5,1253.2,6.6969763]
[1672860714246,11.135,1253.3,1253.1,2.97371456]
[1672860714451,1.583,1253.2,1253.0,1.1896763]
[1672860714666,1.583,1253.2,1253.0,2.5]
[1672860714875,2.5,1253.1,1253.0,1.1896763]
[1672860715094,2.5,1253.1,1253.0,2.5]
[1672860715298,1.583,1253.2,1253.0,2.5]
[1672860715507,2.5,1253.2,1253.0,3.6896763]
[1672860716141,1.596,1253.3,1253.0,3.6896763]
[1672860716560,4.096,1253.4,1253.0,11.6376763]
[1672860716771,4.096,1253.4,1253.0,13.42171456]
[1672860716982,1.583,1253.5,1253.0,15.00971456]
[1672860717406,2.5,1253.4,1253.1,4.1969763]
[1672860717720,2.5,1253.4,1253.2,2.5]
[1672860718352,2.5,1253.4,1253.1,1.5]
[1672860718353,7.0883,1253.4,1253.1,1.5]
[1672860718872,4.081,1253.4,1253.1,4.5073]
[1672860719397,1.581,1253.4,1253.1,5.6969763]
[1672860720334,1.581,1253.4,1253.1,3.0073]
[1672860720547,1.581,1253.4,1252.8,12.49351652]
[1672860720548,1.595,1253.2,1252.8,4.56971456]
[1672860720757,13.29682882,1253.4,1252.7,5.98101456]
[1672860720758,1.588,1253.0,1252.7,5.98101456]
[1672860720966,1.588,1253.0,1252.7,4.1969763]
[1672860721178,1.582,1253.1,1252.8,2.5]
[1672860722019,1.595,1253.2,1252.9,3.0073]
[1672860722230,1.595,1253.2,1253.0,1.5]
[1672860722652,5.11892882,1253.3,1253.0,1.5]
[1672860722862,3.93752882,1253.3,1253.0,1.5]
[1672860723074,1.596,1253.3,1253.0,1.5]
[1672860723391,14.89282882,1253.4,1253.0,3.096]
[1672860723812,1.596,1253.4,1253.0,3.096]
[1672860724441,6.94482882,1253.4,1253.0,3.096]
[1672860724748,6.94482882,1253.4,1253.0,6.1033]
[1672860724964,14.89282882,1253.4,1253.0,6.1033]
[1672860725171,14.89282882,1253.4,1253.0,4.6033]
[1672860725492,1.596,1253.2,1252.8,5.5073]
[1672860726425,1.588,1253.1,1252.8,5.5073]
[1672860726640,1.588,1253.1,1252.7,3.6896763]
[1672860726641,1.591,1252.9,1252.6,4.1969763]
[1672860726852,1.591,1252.9,1252.6,3.0073]
[1672860727061,1.591,1252.9,1252.7,2.5]
[1672860728112,1.591,1252.9,1252.7,3.6896763]
[1672860729166,1.591,1252.9,1252.7,2.5]
[1672860729798,1.591,1252.9,1252.6,6.6969763]
[1672860730011,1.588,1252.7,1252.6,4.1969763]
[1672860730223,1.27359147,1252.7,1252.5,4.47371456]
[1672860730427,1.27359147,1252.7,1252.6,2.5]
[1672860731578,3.095,1252.8,1252.6,2.5]
[1672860731789,3.095,1252.8,1252.6,3.6896763]
[1672860733374,3.095,1252.8,1252.5,5.47371456]
[1672860733686,1.596,1252.7,1252.5,1.1896763]
[1672860734006,1.581,1252.6,1252.5,1.1896763]
[1672860735267,1.581,1252.6,1252.4,2.97371456]
[1672860735684,1.581,1252.6,1252.3,2.5]
[1672860735892,1.581,1252.6,1252.3,1.1896763]
[1672860736101,1.581,1252.5,1252.2,6.6969763]
[1672860736311,1.581,1252.5,1252.4,2.5]
[1672860736521,4.081,1252.5,1252.4,2.5]
[1672860736946,4.081,1252.5,1252.2,8.48101456]
[1672860737156,4.081,1252.5,1252.4,2.5]
[1672860737374,4.096,1252.6,1252.4,2.5]
[1672860737784,1.596,1252.7,1252.4,5.5073]
[1672860737994,3.091,1252.8,1252.4,8.2929763]
[1672860738211,1.591,1252.8,1252.4,16.2409763]
[1672860738522,1.591,1252.8,1252.4,18.02501456]
[1672860738938,1.591,1252.8,1252.5,1.1896763]
[1672860740416,1.591,1252.8,1252.6,3.0073]
[1672860740628,1.596,1252.9,1252.6,3.0073]
[1672860741148,1.596,1252.9,1252.6,4.1969763]
[1672860741781,1.596,1252.9,1252.6,3.0073]
[1672860742197,3.096,1252.8,1252.6,3.0073]
[1672860742620,1.596,1252.7,1252.5,1.1896763]
[1672860742830,1.596,1252.7,1252.4,8.48101456]
[1672860743255,1.596,1252.7,1252.6,1.1896763]
[1672860743674,9.544,1252.7,1252.6,1.1896763]
[1672860744308,9.544,1252.7,1252.5,2.97371456]
[1672860744512,11.133,1252.6,1252.5,1.1896763]
[1672860745784,11.133,1252.6,1252.5,2.88731456]
[1672860746092,11.133,1252.6,1252.5,1.1032763]
[1672860746926,14.1403,1252.6,1252.3,5.64365148]
[1672860747141,1.596,1252.4,1252.3,1.78403826]
[1672860747561,11.139,1252.4,1252.2,9.65095148]
[1672860747772,1.582,1252.3,1252.2,7.15010119]
[1672860747988,12.03,1252.3,1252.2,4.28318797]
[1672860748613,1.582,1252.3,1252.2,4.28318797]
[1672860748820,1.595,1252.3,1252.2,4.28318797]
[1672860749029,1.581,1252.3,1252.2,1.78318797]
[1672860749240,1.581,1252.3,1252.1,1.78318797]
[1672860749463,1.583,1252.2,1252.1,4.14280119]
[1672860749667,9.531,1252.2,1252.1,4.14280119]
[1672860750193,1.583,1252.2,1252.1,2.35961322]
[1672860750614,1.583,1252.2,1252.0,7.29046124]
[1672860750927,1.583,1252.2,1252.0,4.28316124]
[1672860751144,1.583,1252.2,1252.0,5.5073]
[1672860751453,1.583,1252.2,1252.0,7.29046124]
[1672860751660,1.583,1252.2,1252.0,5.5073]
[1672860751877,1.596,1252.2,1252.0,7.29046124]
[1672860752192,1.596,1252.2,1252.0,5.5073]
[1672860752815,1.586,1252.1,1252.0,2.5]
[1672860754288,1.586,1252.1,1251.9,1.78316124]
[1672860754814,1.586,1252.1,1252.0,2.5]
[1672860756507,1.586,1252.1,1251.9,4.28316124]
[1672860756817,9.534,1252.1,1251.8,8.65007446]
[1672860757034,1.582,1252.0,1251.8,1.78316124]
[1672860757233,1.582,1252.0,1251.7,1.78316124]
[1672860757234,1.596,1251.9,1251.7,1.78316124]
[1672860757658,9.544,1251.9,1251.7,1.78316124]
[1672860757867,3.096,1251.9,1251.7,1.78316124]
[1672860758079,3.096,1251.9,1251.8,2.5]
[1672860758503,3.096,1251.9,1251.7,4.28316124]
[1672860761867,3.096,1251.9,1251.7,2.5]
[1672860762394,1.596,1251.9,1251.7,2.5]
[1672860762808,1.596,1251.9,1251.7,4.28316124]
[1672860763122,3.096,1251.9,1251.7,4.28316124]
[1672860763334,1.596,1251.9,1251.7,4.28316124]
[1672860764175,1.583,1252.0,1251.9,0.31458611]
[1672860764497,1.586,1252.1,1251.9,0.31458611]
[1672860764915,1.586,1252.1,1251.9,2.81458611]
[1672860765437,1.586,1252.1,1251.9,0.31458611]
[1672860765649,1.586,1252.1,1252.0,1.78316124]
[1672860766069,9.534,1252.1,1252.0,0.00146124]
[1672860766283,9.534,1252.1,1251.9,0.31458611]
[1672860766501,10.9553,1252.0,1251.9,0.31458611]
[1672860766702,2.29442617,1252.1,1251.9,5.17419933]
[1672860766913,1.586,1252.1,1251.9,5.17419933]
[1672860767122,1.586,1252.1,1252.0,1.5]
[1672860768702,1.586,1252.1,1251.9,8.12371585]
[1672860769548,1.586,1252.1,1251.9,5.17419933]
[1672860769967,1.586,1252.1,1251.9,2.67419933]
[1672860770492,1.586,1252.1,1252.0,2.5]
[1672860770701,11.116,1252.1,1251.9,2.67419933]
[1672860770915,4.6033,1252.0,1251.9,2.67419933]
[1672860771224,1.596,1252.0,1251.9,2.81458611]
[1672860771539,9.544,1252.0,1251.9,5.17419933]
[1672860772172,1.596,1252.0,1251.9,6.5899099]
[1672860772382,9.534,1252.1,1251.9,6.5899099]
[1672860772593,1.586,1252.1,1252.0,1.5]
[1672860772804,1.586,1252.1,1252.0,3.85961322]
[1672860773119,4.5903,1252.2,1252.0,1.5]
[1672860773327,12.5383,1252.2,1252.0,1.5]
[1672860773531,9.531,1252.2,1252.0,1.5]
[1672860775217,9.531,1252.2,1251.9,2.81458611]
[1672860776690,9.531,1252.2,1251.9,0.31458611]
[1672860776900,9.544,1252.0,1251.9,0.31458611]
[1672860777532,1.596,1252.0,1251.9,0.31458611]
[1672860779638,12.5513,1252.1,1251.9,0.31458611]
[1672860780991,1.596,1252.0,1251.9,0.31458611]
[1672860781532,9.544,1252.0,1251.9,0.31458611]
[1672860782580,9.544,1252.0,1251.9,0.28263596]
[1672860782581,9.531,1252.0,1251.9,0.28263596]